fUSD/lending_fUSD_20260116
["ID","MTS","AMOUNT","RATE_DAILY","PERIOD"]
[402161985,1768553768546,-532.57,0.00041369,10]
[402161986,1768553768555,-1219.5,0.00041369,10]
[402161987,1768553768564,-2909.8,0.00041369,10]
[402161988,1768553768575,-858.87,0.00041369,10]
[402161989,1768553768586,-544.68,0.00041369,10]
[402161990,1768553768596,-993.01,0.00041369,10]
[402161991,1768553768605,-1760.07,0.00041369,10]
[402161992,1768553768615,-553.74,0.00041369,10]
[402161993,1768553768626,-1228.85,0.00041369,10]
[402161994,1768553768635,-638.10846984,0.00041369,10]
[402161995,1768553768646,-1541.19,0.00041369,10]
[402161996,1768553768657,-599.03,0.00041369,10]
[402161997,1768553768669,-1004.55,0.00041369,10]
[402161998,1768553768680,-1256.3,0.00041369,10]
[402161999,1768553768690,-722.08,0.00041369,10]
[402162000,1768553768700,-1627.41,0.00041369,10]
[402162001,1768553768709,-999.49,0.00041369,10]
[402162002,1768553768719,-1143.9,0.00041369,10]
[402162003,1768553768728,-1224.65,0.00041369,10]
[402162004,1768553768738,-560.6,0.00041369,10]
[402162005,1768553768748,-1155.7,0.00041369,10]
[402162006,1768553768757,-500.0,0.00041369,10]
[402162007,1768553768767,-614.31,0.00041369,10]
[402162008,1768553768776,-637.11,0.00041369,10]
[402162009,1768553768786,-2192.51,0.00041369,10]
[402162010,1768553768795,-2225.78,0.00041369,10]
[402162011,1768553768804,-758.24,0.00041369,10]
[402162012,1768553768814,-2013.58,0.00041369,10]
[402162013,1768553768823,-2864.87,0.00041369,10]
[402162014,1768553768833,-808.72,0.00041369,10]
[402162015,1768553768842,-1567.87,0.00041369,10]
[402162016,1768553768852,-518.17,0.00041369,10]
[402162017,1768553768861,-1811.28,0.00041369,10]
[402162018,1768553768870,-558.81,0.00041369,10]
[402162019,1768553768879,-1071.23,0.00041369,10]
[402162020,1768553768889,-659.01,0.00041369,10]
[402162021,1768553768898,-866.89,0.00041369,10]
[402162022,1768553768908,-1032.65,0.00041369,10]
[402162023,1768553768918,-759.31,0.00041369,10]
[402162024,1768553768928,-637.41,0.00041369,10]
[402162025,1768553768939,-1020.76,0.00041369,10]
[402162026,1768553768949,-1128.16,0.00041369,10]
[402162027,1768553768959,-547.39,0.00041369,10]
[402162028,1768553768969,-7210.62,0.00041369,10]
[402162029,1768553768979,-5211.07,0.00041369,10]
[402162030,1768553768989,-1681.96,0.00041369,10]
[402162031,1768553768999,-729.24,0.00041369,10]
[402162032,1768553769009,-1064.3,0.00041369,10]
[402162033,1768553769020,-5144.07,0.00041369,10]
[402162034,1768553769031,-521.48,0.00041369,10]
[402162035,1768553769041,-532.27,0.00041369,10]
[402162037,1768553769050,-1000.95,0.00041369,10]
[402162038,1768553769061,-2351.16,0.00041369,10]
[402162040,1768553769070,-672.3,0.00041369,10]
[402162041,1768553769080,-642.7,0.00041369,10]
[402162042,1768553769090,-1048.19,0.00041369,10]
[402162043,1768553769099,-679.92,0.00041369,10]
[402162044,1768553769109,-2044.82,0.00041369,10]
[402162045,1768553769118,-534.04086723,0.00041369,10]
[402162046,1768553769127,-735.56,0.00041369,10]
[402162047,1768553769137,-804.46,0.00041369,10]
[402162048,1768553769148,-500.0,0.00041369,10]
[402162049,1768553769157,-793.57,0.00041369,10]
[402162050,1768553769167,-1159.07,0.00041369,10]
[402162051,1768553769177,-2221.23,0.00041369,10]
[402162052,1768553769187,-580.85,0.00041369,10]
[402162053,1768553769198,-941.49,0.00041369,10]
[402162054,1768553769208,-599.94,0.00041369,10]
[402162055,1768553769218,-677.99,0.00041369,10]
[402162056,1768553769227,-1202.41,0.00041369,10]
[402162057,1768553769237,-1781.11,0.00041369,120]
[402162058,1768553769246,-2033.16,0.00041369,10]
[402162059,1768553769256,-2114.42,0.00041369,10]
[402162060,1768553769266,-1524.13,0.00041369,10]
[402162061,1768553769275,-953.55,0.00041369,10]
[402162062,1768553769285,-556.39,0.00041369,10]
[402162063,1768553769295,-1013.89,0.00041369,10]
[402162064,1768553769304,-1302.19,0.00041369,10]
[402162065,1768553769313,-593.7,0.00041369,10]
[402162066,1768553769323,-859.25,0.00041369,10]
[402162067,1768553769332,-623.79,0.00041369,10]
[402162068,1768553769342,-1282.3,0.00041369,10]
[402162069,1768553769351,-606.36,0.00041369,10]
[402162070,1768553769360,-1084.77,0.00041369,10]
[402162071,1768553769369,-781.44,0.00041369,10]
[402162072,1768553769379,-616.11,0.00041369,10]
[402162073,1768553769388,-907.52,0.00041369,10]
[402162074,1768553769397,-731.99,0.00041369,10]
[402162075,1768553769406,-849.36,0.00041369,10]
[402162076,1768553769415,-1477.23,0.00041369,10]
[402162077,1768553769424,-643.32,0.00041369,10]
[402162078,1768553769434,-500.0,0.00041369,10]
[402162079,1768553769443,-823.29,0.00041369,10]
[402162080,1768553769453,-802.79,0.00041369,10]
[402162081,1768553769462,-725.02,0.00041369,10]
[402162082,1768553769471,-1029.59,0.00041369,10]
[402162083,1768553769480,-2502.55,0.00041369,10]
[402162084,1768553769490,-713.0,0.00041369,10]
[402162085,1768553769499,-1172.78,0.00041369,10]
[402162086,1768553769508,-1013.39,0.00041369,10]
[402162087,1768553769517,-764.71,0.00041369,10]
[402162088,1768553769526,-761.36,0.00041369,10]
[402162089,1768553769536,-4884.35,0.00041369,10]
[402162090,1768553769545,-629.83,0.00041369,10]
[402162091,1768553769555,-704.6,0.00041369,10]
[402162092,1768553769565,-1262.69,0.00041369,10]
[402162093,1768553769575,-1064.4,0.00041369,10]
[402162094,1768553769586,-564.83,0.00041369,10]
[402162095,1768553769595,-1260.28,0.00041369,10]
[402162096,1768553769604,-662.32,0.00041369,10]
[402162097,1768553769614,-1785.36,0.00041369,10]
[402162098,1768553769624,-1338.09,0.00041369,10]
[402162099,1768553769633,-750.48,0.00041369,10]
[402162100,1768553769642,-897.64,0.00041369,10]
[402162101,1768553769653,-500.0,0.00041369,10]
[402162102,1768553769662,-591.5,0.00041369,10]
[402162103,1768553769672,-1018.43,0.00041369,10]
[402162104,1768553769682,-747.98,0.00041369,10]
[402162105,1768553769692,-764.04,0.00041369,10]
[402162106,1768553769701,-359.08762365,0.00041369,10]
[402162107,1768553769711,-6302.12,0.00041369,10]
[402162108,1768553769720,-1736.72,0.00041369,10]
[402162109,1768553769729,-505.41,0.00041369,10]
[402162110,1768553769738,-1002.58,0.00041369,10]
[402162111,1768553769747,-667.66,0.00041369,10]
[402162112,1768553769756,-1307.78,0.00041369,10]
[402162113,1768553769765,-1041.6,0.00041369,10]
[402162114,1768553769775,-528.13,0.00041369,10]
[402162115,1768553769784,-1353.3,0.00041369,10]
[402162116,1768553769794,-500.0,0.00041369,10]
[402162117,1768553769803,-1109.73,0.00041369,10]
[402162118,1768553769811,-848.85,0.00041369,10]
[402162119,1768553769821,-623.92,0.00041369,10]
[402162120,1768553769830,-737.24,0.00041369,10]
[402162121,1768553769839,-1021.74,0.00041369,10]
[402162122,1768553769848,-935.75,0.00041369,10]
[402162123,1768553769857,-539.09,0.00041369,10]
[402162124,1768553769866,-907.64,0.00041369,10]
[402162125,1768553769875,-535.61,0.00041369,10]
[402162126,1768553769885,-664.49,0.00041369,10]
[402162127,1768553769894,-686.98,0.00041369,10]
[402162128,1768553769903,-1173.84,0.00041369,10]
[402162129,1768553769912,-600.0,0.0004137,120]
[402162130,1768553769922,-500.0,0.0004137,2]
[402162131,1768553769931,-1700.0,0.0004137,60]
[402162132,1768553769941,-150.0,0.00041382,30]
[402162133,1768553769951,-238.90934185,0.0004139,30]
[402162134,1768553769960,-200.06159783,0.0004139,30]
[402162135,1768553769969,-162.8115885,0.0004139,30]
[402162136,1768553769978,-214.36344643,0.0004139,30]
[402162137,1768553769987,-203.67457519,0.0004139,30]
[402162138,1768553769996,-303.49476013,0.0004139,30]
[402162139,1768553770007,-167.99625046,0.0004139,30]
[402162140,1768553770015,-1000.0,0.000414,120]
[402162141,1768553770025,-152.0,0.00041409,10]
[402162142,1768553770034,-3321.83093202,0.00041414,120]
[402162143,1768553770043,-500.0,0.00041425,2]
[402162144,1768553770053,-150.0,0.00041445,30]
[402162145,1768553770062,-238.90934185,0.00041447,30]
[402162146,1768553770072,-200.06159783,0.00041447,30]
[402162147,1768553770081,-162.8115885,0.00041447,30]
[402162148,1768553770091,-214.36344643,0.00041447,30]
[402162149,1768553770100,-203.67457519,0.00041447,30]
[402162150,1768553770109,-303.49476013,0.00041447,30]
[402162151,1768553770118,-167.99625046,0.00041447,30]
[402162152,1768553770128,-500.0,0.0004148,2]
[402162153,1768553770137,-562.9,0.0004148,120]
[402162154,1768553770147,-150.0,0.00041483,30]
[402162155,1768553770156,-150.0,0.00041497,30]
[402162156,1768553770165,-151.0,0.000415,120]
[402162157,1768553770174,-500.0,0.000415,120]
[402162158,1768553770183,-500.0,0.000415,120]
[402162159,1768553770192,-500.0,0.000415,120]
[402162160,1768553770201,-500.0,0.000415,120]
[402162161,1768553770211,-500.0,0.000415,120]
[402162162,1768553770220,-150.0,0.000415,30]
[402162163,1768553770229,-238.90934185,0.00041504,30]
[402162164,1768553770237,-200.06159783,0.00041504,30]
[402162165,1768553770247,-162.8115885,0.00041504,30]
[402162166,1768553770256,-214.36344643,0.00041504,30]
[402162167,1768553770266,-203.67457519,0.00041504,30]
[402162168,1768553770275,-303.49476013,0.00041504,30]
[402162169,1768553770284,-167.99625046,0.00041504,30]
[402162170,1768553770293,-500.0,0.00041534,2]
[402162171,1768553770302,-238.90934185,0.00041561,30]
[402162172,1768553770311,-200.06159783,0.00041561,30]
[402162173,1768553770320,-162.8115885,0.00041561,30]
[402162174,1768553770330,-214.36344643,0.00041561,30]
[402162175,1768553770525,-203.67457519,0.00041561,30]
[402162176,1768553770535,-303.49476013,0.00041561,30]
[402162177,1768553770543,-167.99625046,0.00041561,30]
[402162178,1768553770552,-150.0,0.00041561,30]
[402162179,1768553770562,-150.0,0.00041595,30]
[402162180,1768553770571,-150.0,0.00041613,30]
[402162181,1768553770582,-238.90934185,0.00041619,30]
[402162182,1768553770592,-200.06159783,0.00041619,30]
[402162183,1768553770601,-162.8115885,0.00041619,30]
[402162184,1768553770610,-214.36344643,0.00041619,30]
[402162185,1768553770619,-203.67457519,0.00041619,30]
[402162186,1768553770629,-303.49476013,0.00041619,30]
[402162187,1768553770638,-167.99625046,0.00041619,30]
[402162188,1768553770648,-18764.0,0.00041619,30]
[402162189,1768553770657,-150.0,0.00041638,30]
[402162190,1768553770667,-567.28,0.00041643,10]
[402162191,1768553770676,-1031.15,0.00041643,10]
[402162192,1768553770685,-808.21,0.00041643,10]
[402162193,1768553770695,-813.73,0.00041643,10]
[402162194,1768553770704,-973.06,0.00041643,10]
[402162195,1768553770713,-504.36,0.00041643,10]
[402162196,1768553770722,-674.01,0.00041643,10]
[402162197,1768553770731,-1037.35,0.00041643,10]
[402162198,1768553770741,-525.62,0.00041643,10]
[402162199,1768553770750,-1211.73,0.00041643,10]
[402162200,1768553770759,-654.54,0.00041643,10]
[402162201,1768553770767,-902.4,0.00041643,10]
[402162202,1768553770776,-548.97,0.00041643,10]
[402162203,1768553770786,-915.0,0.00041643,10]
[402162204,1768553770795,-786.94,0.00041643,10]
[402162205,1768553770804,-1003.52,0.00041643,10]
[402162206,1768553770812,-837.95,0.00041643,10]
[402162207,1768553770822,-551.36,0.00041643,10]
[402162208,1768553770831,-548.17,0.00041643,10]
[402162209,1768553770841,-1196.74,0.00041643,10]
[402162210,1768553770851,-587.74,0.00041643,10]
[402162211,1768553770860,-1100.8,0.00041643,10]
[402162212,1768553770870,-1067.27,0.00041643,10]
[402162213,1768553770879,-826.56,0.00041643,10]
[402162214,1768553770889,-875.73,0.00041643,10]
[402162215,1768553770899,-866.61,0.00041643,10]
[402162216,1768553770909,-542.86,0.00041643,10]
[402162217,1768553770918,-513.96,0.00041643,10]
[402162218,1768553770928,-853.02,0.00041643,10]
[402162219,1768553770937,-568.61,0.00041643,10]
[402162220,1768553770947,-625.29,0.00041643,10]
[402162221,1768553770956,-503.47,0.00041643,10]
[402162222,1768553770965,-1479.39,0.00041643,10]
[402162223,1768553770974,-668.37,0.00041643,10]
[402162224,1768553770984,-554.51,0.00041643,10]
[402162225,1768553770993,-823.81,0.00041643,10]
[402162226,1768553771002,-522.66,0.00041643,10]
[402162227,1768553771012,-632.8,0.00041643,10]
[402162228,1768553771021,-760.77,0.00041643,10]
[402162229,1768553771030,-540.98,0.00041643,10]
[402162230,1768553771040,-513.95,0.00041643,10]
[402162231,1768553771049,-543.44,0.00041643,10]
[402162232,1768553771059,-766.12,0.00041643,10]
[402162233,1768553771070,-745.1,0.00041643,10]
[402162234,1768553771081,-602.84,0.00041643,10]
[402162235,1768553771090,-681.64,0.00041643,10]
[402162236,1768553771100,-946.6,0.00041643,10]
[402162237,1768553771109,-982.01,0.00041643,10]
[402162238,1768553771119,-1431.59,0.00041643,10]
[402162239,1768553771128,-582.81,0.00041643,10]
[402162240,1768553771137,-1103.68,0.00041643,30]
[402162241,1768553771147,-500.0,0.00041643,10]
[402162242,1768553771156,-500.0,0.00041643,10]
[402162243,1768553771166,-872.15,0.00041643,10]
[402162244,1768553771174,-703.99,0.00041643,10]
[402162245,1768553771183,-548.64,0.00041643,10]
[402162246,1768553771193,-850.54,0.00041643,10]
[402162247,1768553771203,-1034.71,0.00041643,10]
[402162248,1768553771213,-601.2,0.00041643,10]
[402162249,1768553771222,-712.34,0.00041643,10]
[402162250,1768553771232,-1048.59,0.00041643,10]
[402162251,1768553771241,-797.78,0.00041643,10]
[402162252,1768553771250,-864.57,0.00041643,10]
[402162253,1768553771259,-669.34,0.00041643,10]
[402162254,1768553771268,-469.12,0.00041643,10]
[402162255,1768553771277,-1695.98,0.00041643,10]
[402162256,1768553771286,-710.63,0.00041643,10]
[402162257,1768553771295,-746.93,0.00041643,10]
[402162258,1768553771304,-576.53,0.00041643,10]
[402162259,1768553771314,-551.55,0.00041643,10]
[402162260,1768553771324,-848.31,0.00041643,10]
[402162261,1768553771333,-640.15,0.00041643,10]
[402162262,1768553771342,-829.07,0.00041643,10]
[402162263,1768553771351,-893.03,0.00041643,10]
[402162264,1768553771360,-1044.65,0.00041643,2]
[402162265,1768553771369,-580.09,0.00041643,10]
[402162266,1768553771380,-2280.83,0.00041643,10]
[402162267,1768553771391,-950.38,0.00041643,10]
[402162268,1768553771400,-925.85,0.00041643,10]
[402162269,1768553771409,-926.38,0.00041643,10]
[402162270,1768553771418,-1091.37,0.00041643,10]
[402162271,1768553771427,-934.74,0.00041643,10]
[402162272,1768553771438,-1096.7,0.00041643,10]
[402162273,1768553771448,-615.77,0.00041643,10]
[402162274,1768553771457,-694.36,0.00041643,10]
[402162275,1768553771466,-816.08,0.00041643,10]
[402162276,1768553771476,-703.54,0.00041643,10]
[402162277,1768553771485,-2000.78,0.00041643,10]
[402162278,1768553771495,-1150.42,0.00041643,10]
[402162279,1768553771504,-658.36,0.00041643,10]
[402162280,1768553771514,-788.58,0.00041643,10]
[402162281,1768553771525,-578.18,0.00041643,10]
[402162282,1768553771536,-1428.02,0.00041643,10]
[402162283,1768553771545,-705.82,0.00041643,10]
[402162284,1768553771554,-931.05,0.00041643,10]
[402162285,1768553771563,-577.64,0.00041643,10]
[402162286,1768553771572,-528.44,0.00041643,10]
[402162287,1768553771584,-2108.45,0.00041643,10]
[402162288,1768553771592,-1149.82,0.00041643,10]
[402162289,1768553771602,-683.35,0.00041643,10]
[402162290,1768553771612,-959.04,0.00041643,10]
[402162291,1768553771622,-700.17,0.00041643,10]
[402162292,1768553771631,-625.74,0.00041643,10]
[402162293,1768553771640,-754.4,0.00041643,10]
[402162294,1768553771651,-500.0,0.00041643,10]
[402162295,1768553771660,-737.5,0.00041643,10]
[402162296,1768553771669,-625.2,0.00041643,10]
[402162297,1768553771678,-641.84,0.00041643,10]
[402162298,1768553771687,-610.78,0.00041643,10]
[402162299,1768553771697,-544.89,0.00041643,10]
[402162300,1768553771706,-523.76,0.00041643,10]
[402162301,1768553771715,-637.87,0.00041643,10]
[402162302,1768553771724,-551.65,0.00041643,10]
[402162303,1768553771734,-1594.08,0.00041643,10]
[402162304,1768553771743,-796.44,0.00041643,10]
[402162305,1768553771752,-1146.06,0.00041643,10]
[402162306,1768553771762,-567.16,0.00041643,10]
[402162307,1768553771770,-522.75,0.00041643,10]
[402162308,1768553771779,-517.33,0.00041643,10]
[402162309,1768553771788,-484.23941484,0.00041643,10]
[402162310,1768553771797,-751.2,0.00041643,10]
[402162311,1768553771806,-662.29,0.00041643,10]
[402162312,1768553771815,-669.08,0.00041643,10]
[402162313,1768553771823,-677.54,0.00041643,10]
[402162314,1768553771832,-1168.86,0.00041643,10]
[402162315,1768553771840,-1117.06,0.00041643,10]
[402162316,1768553771850,-1648.88,0.00041643,10]
[402162317,1768553771859,-636.52,0.00041643,10]
[402162318,1768553771868,-636.43,0.00041643,10]
[402162319,1768553771877,-575.94,0.00041643,10]
[402162320,1768553771885,-716.91,0.00041643,10]
[402162321,1768553771894,-876.77,0.00041643,10]
[402162322,1768553771903,-203.47539484,0.00041643,10]
[402162323,1768553771911,-990.78,0.00041643,10]
[402162324,1768553771920,-909.88,0.00041643,10]
[402162325,1768553771929,-541.15,0.00041643,10]
[402162326,1768553771938,-1150.93,0.00041643,10]
[402162327,1768553771947,-527.48,0.00041643,10]
[402162328,1768553771956,-436.32410486,0.00041643,10]
[402162329,1768553771966,-744.14,0.00041643,10]
[402162330,1768553771975,-903.48,0.00041643,10]
[402162331,1768553771985,-507.96,0.00041643,10]
[402162332,1768553771994,-662.66,0.00041643,10]
[402162333,1768553772003,-690.13,0.00041643,10]
[402162334,1768553772013,-519.9,0.00041643,10]
[402162335,1768553772022,-1521.24,0.00041643,10]
[402162336,1768553772031,-823.6,0.00041643,10]
[402162337,1768553772040,-468.96036281,0.00041643,10]
[402162338,1768553772049,-1331.43,0.00041643,10]
[402162339,1768553772058,-732.95,0.00041643,10]
[402162340,1768553772067,-1326.59,0.00041643,10]
[402162341,1768553772076,-1280.38,0.00041643,10]
[402162342,1768553772086,-791.99,0.00041643,10]
[402162343,1768553772095,-500.0,0.00041643,10]
[402162344,1768553772103,-512.72,0.00041643,10]
[402162345,1768553772112,-979.74,0.00041643,10]
[402162346,1768553772122,-644.37,0.00041643,10]
[402162347,1768553772131,-577.2,0.00041643,10]
[402162348,1768553772141,-970.71,0.00041643,10]
[402162349,1768553772151,-570.0,0.00041643,10]
[402162350,1768553772160,-500.0,0.00041643,10]
[402162351,1768553772169,-751.52,0.00041643,10]
[402162352,1768553772178,-1015.29,0.00041643,10]
[402162353,1768553772187,-685.85,0.00041643,10]
[402162354,1768553772196,-518.25,0.00041643,10]
[402162355,1768553772205,-612.29,0.00041643,10]
[402162356,1768553772214,-806.51,0.00041643,10]
[402162357,1768553772223,-695.39,0.00041643,10]
[402162358,1768553772233,-607.83,0.00041643,10]
[402162359,1768553772243,-549.65,0.00041643,10]
[402162360,1768553772253,-1220.06,0.00041643,10]
[402162361,1768553772262,-1662.06,0.00041643,10]
[402162362,1768553772272,-1639.22,0.00041643,10]
[402162363,1768553772280,-908.6,0.00041643,10]
[402162364,1768553772289,-1617.91,0.00041643,10]
[402162365,1768553772298,-1143.12,0.00041643,10]
[402162366,1768553772307,-816.75,0.00041643,10]
[402162367,1768553772316,-478.07066416,0.00041643,10]
[402162368,1768553772325,-716.45,0.00041643,10]
[402162369,1768553772334,-885.26,0.00041643,10]
[402162370,1768553772343,-678.11,0.00041643,10]
[402162371,1768553772352,-1027.78,0.00041643,10]
[402162372,1768553772361,-1096.77,0.00041643,10]
[402162373,1768553772370,-702.08,0.00041643,10]
[402162374,1768553772379,-681.79,0.00041643,10]
[402162375,1768553772388,-1477.47,0.00041643,10]
[402162376,1768553772397,-989.99,0.00041643,10]
[402162377,1768553772407,-676.3,0.00041643,10]
[402162378,1768553772420,-912.84,0.00041643,10]
[402162379,1768553772429,-807.54,0.00041643,10]
[402162380,1768553772438,-591.47,0.00041643,10]
[402162381,1768553772447,-1293.68,0.00041643,10]
[402162382,1768553772457,-618.86,0.00041643,10]
[402162383,1768553772465,-834.67,0.00041643,10]
[402162384,1768553772475,-4949.68,0.00041643,10]
[402162385,1768553772484,-1730.65,0.00041643,10]
[402162386,1768553772493,-500.46,0.00041643,10]
[402162387,1768553772502,-930.98,0.00041643,10]
[402162388,1768553772511,-875.62,0.00041643,10]
[402162389,1768553772520,-1041.0,0.00041643,10]
[402162390,1768553772529,-1262.31,0.00041643,10]
[402162391,1768553772538,-524.92,0.00041643,10]
[402162392,1768553772547,-591.83,0.00041643,10]
[402162393,1768553772555,-614.68,0.00041643,10]
[402162394,1768553772564,-1848.72,0.00041643,10]
[402162395,1768553772574,-790.99,0.00041643,10]
[402162396,1768553772586,-353.65,0.00041643,2]
[402162397,1768553772594,-1044.21,0.00041643,10]
[402162398,1768553772604,-1947.44,0.00041643,10]
[402162399,1768553772612,-629.32,0.00041643,10]
[402162400,1768553772622,-1553.42,0.00041643,10]
[402162401,1768553772631,-1024.82,0.00041643,10]
[402162402,1768553772640,-795.66,0.00041643,10]
[402162403,1768553772650,-1036.49,0.00041643,10]
[402162404,1768553772660,-1013.98,0.00041643,10]
[402162405,1768553772669,-875.71,0.00041643,10]
[402162406,1768553772678,-548.64,0.00041643,10]
[402162407,1768553772688,-562.25,0.00041643,10]
[402162408,1768553772697,-1422.5,0.00041643,10]
[402162409,1768553772707,-543.96,0.00041643,10]
[402162410,1768553772717,-1126.68,0.00041643,10]
[402162411,1768553772726,-2121.76,0.00041643,10]
[402162412,1768553772735,-532.76,0.00041643,10]
[402162413,1768553772743,-1905.23,0.00041643,10]
[402162414,1768553772752,-502.52,0.00041643,10]
[402162415,1768553772762,-540.07,0.00041643,10]
[402162416,1768553772771,-1016.35,0.00041643,10]
[402162417,1768553772779,-5056.94,0.00041643,10]
[402162418,1768553772788,-592.16,0.00041643,10]
[402162419,1768553772798,-889.56,0.00041643,10]
[402162420,1768553772807,-555.59752214,0.00041643,10]
[402162421,1768553772816,-1150.45,0.00041643,10]
[402162422,1768553772825,-648.45,0.00041643,10]
[402162423,1768553772835,-1345.33,0.00041643,10]
[402162424,1768553772844,-1052.14,0.00041643,10]
[402162425,1768553772854,-990.43,0.00041643,10]
[402162426,1768553772864,-877.08,0.00041643,10]
[402162427,1768553772874,-1245.81,0.00041643,10]
[402162428,1768553772883,-665.86,0.00041643,10]
[402162429,1768553772893,-1029.8,0.00041643,10]
[402162430,1768553772902,-1298.7,0.00041643,10]
[402162431,1768553772911,-581.72,0.00041643,10]
[402162432,1768553772920,-850.69,0.00041643,10]
[402162433,1768553772930,-995.5,0.00041643,10]
[402162434,1768553772939,-1075.5,0.00041643,10]
[402162435,1768553772949,-519.23,0.00041643,10]
[402162436,1768553772959,-529.03,0.00041643,10]
[402162437,1768553772969,-716.08,0.00041643,10]
[402162438,1768553772978,-638.58218926,0.00041643,10]
[402162439,1768553772988,-1363.31,0.00041643,10]
[402162440,1768553772997,-598.71,0.00041643,10]
[402162441,1768553773006,-1221.02,0.00041643,10]
[402162442,1768553773016,-823.04,0.00041643,10]
[402162443,1768553773025,-1064.34,0.00041643,10]
[402162444,1768553773035,-2853.19,0.00041643,10]
[402162445,1768553773045,-913.43,0.00041643,10]
[402162446,1768553773054,-591.9,0.00041643,10]
[402162447,1768553773063,-500.0,0.00041643,10]
[402162448,1768553773073,-549.28,0.00041643,10]
[402162449,1768553773082,-2393.97,0.00041643,10]
[402162450,1768553773091,-589.47,0.00041643,10]
[402162451,1768553773100,-2257.21,0.00041643,10]
[402162452,1768553773110,-805.83,0.00041643,10]
[402162453,1768553773120,-546.1,0.00041643,10]
[402162454,1768553773130,-1412.18,0.00041643,10]
[402162455,1768553773139,-183.53947298,0.00041643,10]
[402162456,1768553773148,-712.99,0.00041643,10]
[402162457,1768553773158,-661.07,0.00041643,10]
[402162458,1768553773166,-732.11,0.00041643,10]
[402162459,1768553773175,-652.47,0.00041643,10]
[402162460,1768553773184,-713.12,0.00041643,10]
[402162461,1768553773193,-693.86,0.00041643,10]
[402162462,1768553773202,-1182.17,0.00041643,10]
[402162463,1768553773211,-714.22,0.00041643,10]
[402162464,1768553773220,-652.5,0.00041643,10]
[402162465,1768553773229,-1245.62,0.00041643,10]
[402162466,1768553773238,-1497.09,0.00041643,10]
[402162467,1768553773247,-1210.4,0.00041643,10]
[402162468,1768553773255,-1212.59,0.00041643,10]
[402162469,1768553773264,-941.66,0.00041643,10]
[402162470,1768553773274,-1223.9,0.00041643,10]
[402162471,1768553773283,-1292.5,0.00041643,10]
[402162472,1768553773291,-1141.45,0.00041643,10]
[402162473,1768553773301,-885.86,0.00041643,10]
[402162474,1768553773310,-520.6,0.00041643,10]
[402162475,1768553773319,-3901.38,0.00041643,10]
[402162476,1768553773327,-532.57,0.00041643,10]
[402162477,1768553773337,-1219.5,0.00041643,10]
[402162478,1768553773346,-2909.8,0.00041643,10]
[402162479,1768553773355,-858.87,0.00041643,10]
[402162480,1768553773364,-544.68,0.00041643,10]
[402162481,1768553773373,-993.01,0.00041643,10]
[402162482,1768553773382,-1760.07,0.00041643,10]
[402162483,1768553773391,-1228.85,0.00041643,10]
[402162484,1768553773400,-553.74,0.00041643,10]
[402162485,1768553773409,-1541.19,0.00041643,10]
[402162486,1768553773418,-599.03,0.00041643,10]